bitfinex/quotes_BTCUSD_20250108
["timestamp","ask_amount","ask_price","bid_price","bid_amount"]
[1736319721585,1.99704282,95448.0,95435.0,0.00551762]
[1736319722578,2.09704282,95448.0,95435.0,0.00551762]
[1736319723531,2.19704282,95448.0,95435.0,0.00551762]
[1736319723739,0.57779808,95436.0,95435.0,0.00551762]
[1736319723957,4.01232082,95436.0,95435.0,0.00602836]
[1736319724212,4.08745882,95436.0,95435.0,0.00602836]
[1736319724453,3.93646082,95436.0,95435.0,0.00602836]
[1736319725099,0.94947082,95436.0,95435.0,0.00602836]
[1736319725303,2.03155482,95436.0,95435.0,0.00602836]
[1736319725508,3.31167424,95436.0,95435.0,0.00602836]
[1736319725707,3.65849124,95436.0,95435.0,0.00602836]
[1736319725962,3.64518324,95436.0,95435.0,0.00602836]
[1736319726166,3.28432524,95436.0,95435.0,0.00602836]
[1736319728486,3.61272524,95436.0,95435.0,0.00602836]
[1736319729278,3.61272524,95436.0,95435.0,3.6e-07]
[1736319729493,1.28838724,95436.0,95435.0,3.6e-07]
[1736319730144,1.46270898,95436.0,95435.0,3.6e-07]
[1736319730557,0.78698724,95436.0,95435.0,3.6e-07]
[1736319731196,0.93698724,95436.0,95435.0,3.6e-07]
[1736319731611,1.15998724,95436.0,95435.0,3.6e-07]
[1736319731738,0.44523408,95433.0,95432.0,0.00123864]
[1736319731938,4.62310782,95433.0,95432.0,0.00123864]
[1736319732135,4.43268182,95433.0,95432.0,0.00123864]
[1736319732350,4.33268182,95433.0,95432.0,0.00123864]
[1736319732612,4.13638382,95433.0,95432.0,0.00123864]
[1736319732811,3.20770782,95433.0,95432.0,0.00123864]
[1736319733052,2.93564574,95433.0,95432.0,0.00123864]
[1736319733211,3.00991782,95433.0,95432.0,0.00123864]
[1736319733465,0.54523408,95423.0,95422.0,0.0097444]
[1736319733658,5.87176704,95423.0,95422.0,0.0097444]
[1736319733864,2.83911112,95423.0,95422.0,0.0097444]
[1736319734066,1.93480912,95423.0,95422.0,0.0097444]
[1736319734271,1.79860912,95423.0,95422.0,0.0097444]
[1736319734447,1.78849212,95423.0,95422.0,0.0097444]
[1736319734964,1.82216887,95423.0,95422.0,0.0097444]
[1736319736833,1.92216887,95423.0,95422.0,0.0097444]
[1736319739148,1.82216887,95423.0,95422.0,0.0097444]
[1736319740076,1.92216887,95423.0,95422.0,0.0097444]
[1736319740828,1.72693479,95423.0,95422.0,0.0097444]
[1736319741050,1.92216887,95423.0,95422.0,0.0097444]
[1736319741221,1.82216887,95423.0,95422.0,0.0097444]
[1736319741427,1.53094487,95423.0,95422.0,0.0097444]
[1736319741645,1.50305267,95423.0,95422.0,0.0077444]
[1736319741988,1.6244948,95423.0,95422.0,0.0077444]
[1736319744554,1.4244948,95423.0,95422.0,0.0077444]
[1736319745606,1.15649887,95423.0,95422.0,0.0077444]
[1736319745823,1.17949887,95423.0,95422.0,0.0077444]
[1736319746020,1.32949887,95423.0,95422.0,0.0077444]
[1736319749520,1.29475487,95423.0,95422.0,0.0077444]
[1736319749738,1.10372787,95423.0,95422.0,0.0077444]
[1736319750350,1.08813387,95423.0,95422.0,0.0077444]
[1736319751638,0.59335083,95423.0,95422.0,0.0077444]
[1736319751847,0.29751083,95423.0,95422.0,0.0077444]
[1736319752051,0.0416,95423.0,95422.0,0.0077444]
[1736319752258,0.0416,95423.0,95422.0,0.0854444]
[1736319752874,0.0416,95423.0,95422.0,0.1501644]
[1736319753831,0.11135794,95427.0,95423.0,0.1302]
[1736319754035,0.09523408,95424.0,95423.0,0.0829]
[1736319754219,0.26823408,95423.0,95422.0,0.0077444]
[1736319754423,1.50133882,95423.0,95422.0,0.0077444]
[1736319754823,1.58739382,95423.0,95422.0,0.0077444]
[1736319755055,1.08580282,95423.0,95422.0,0.0077444]
[1736319755255,0.80561782,95423.0,95422.0,0.0077444]
[1736319755462,0.78394182,95423.0,95422.0,0.0077444]
[1736319755925,0.77147282,95423.0,95422.0,0.0077444]
[1736319757531,0.45760508,95423.0,95422.0,0.0077444]
[1736319757708,0.09523408,95424.0,95422.0,0.0077444]
[1736319758112,0.023,95423.0,95422.0,0.0077444]
[1736319760818,0.09523408,95424.0,95422.0,0.0077444]
[1736319761259,0.023,95423.0,95422.0,0.0077444]
[1736319761688,0.023,95426.0,95422.0,0.0077444]
[1736319761934,0.11135794,95427.0,95422.0,0.0077444]
[1736319762144,0.11135794,95427.0,95423.0,0.0828]
[1736319762359,0.11135794,95427.0,95424.0,0.21048293]
[1736319762502,0.11135794,95427.0,95425.0,0.0483]
[1736319762707,0.11135794,95427.0,95426.0,0.209586]
[1736319762905,0.11135794,95427.0,95426.0,0.292386]
[1736319763697,0.11135794,95427.0,95426.0,0.39666074]
[1736319763974,0.11135794,95427.0,95426.0,0.47336695]
[1736319764312,0.06135794,95427.0,95426.0,0.39666074]
[1736319764523,0.00148005,95462.0,95435.0,0.290766]
[1736319764750,0.00041042,95436.0,95435.0,0.45972074]
[1736319766082,0.00041042,95436.0,95435.0,0.46172074]
[1736319766295,0.00041042,95436.0,95435.0,0.58902651]
[1736319766515,0.00041042,95436.0,95435.0,0.1329]
[1736319766683,0.00041042,95436.0,95435.0,0.0832]
[1736319766882,0.00041042,95436.0,95435.0,0.002]
[1736319767285,0.00041042,95436.0,95435.0,0.00289251]
[1736319767895,0.00041042,95436.0,95435.0,0.10916725]
[1736319768096,0.00041042,95436.0,95435.0,0.17646617]
[1736319768303,0.00041042,95436.0,95435.0,0.17446617]
[1736319768661,0.00041042,95436.0,95435.0,0.22843209]
[1736319768873,0.00041042,95436.0,95435.0,0.22353958]
[1736319769088,0.00041042,95436.0,95435.0,0.32353958]
[1736319769294,0.0001704,95462.0,95461.0,0.209509]
[1736319769500,0.0003041,95462.0,95461.0,0.274189]
[1736319772010,0.0003041,95462.0,95461.0,0.279189]
[1736319772219,0.0003041,95462.0,95461.0,0.274189]
[1736319772633,0.0002041,95462.0,95461.0,0.279189]
[1736319772840,0.0002041,95462.0,95461.0,0.3426395]
[1736319773463,0.0002041,95462.0,95461.0,0.007]
[1736319773847,0.0002041,95462.0,95461.0,0.07168]
[1736319774228,0.0002041,95462.0,95461.0,0.007]
[1736319774436,0.26843818,95462.0,95461.0,0.002]
[1736319774638,0.95797792,95462.0,95461.0,0.003]
[1736319774858,2.37946792,95462.0,95461.0,0.001]
[1736319775023,2.01511802,95462.0,95461.0,0.001]
[1736319775228,0.209533,95450.0,95435.0,0.06468]
[1736319775424,0.023,95444.0,95435.0,0.06468]
[1736319775763,0.023,95448.0,95435.0,0.06468]
[1736319776175,0.023,95444.0,95435.0,0.06468]
[1736319776371,0.023,95446.0,95435.0,0.06468]
[1736319776571,0.02287389,95446.0,95436.0,0.00089258]
[1736319776798,0.09523408,95458.0,95436.0,0.00089258]
[1736319777011,0.09523408,95460.0,95437.0,0.10427474]
[1736319777183,0.0002041,95462.0,95447.0,0.20954]
[1736319777383,0.0002041,95462.0,95449.0,0.209535]
[1736319777605,0.0002041,95462.0,95450.0,0.00089198]
[1736319777807,0.0002041,95462.0,95452.0,0.209529]
[1736319778008,0.0002041,95462.0,95448.0,0.028984]
[1736319778009,0.0002041,95462.0,95453.0,0.0008919]
[1736319778232,0.0002041,95462.0,95454.0,0.2104149]
[1736319778445,0.0002041,95462.0,95456.0,0.20952]
[1736319778661,0.0002041,95462.0,95457.0,0.21040876]
[1736319778873,0.0002041,95462.0,95457.0,0.41992576]
[1736319779080,0.0002041,95462.0,95457.0,0.21040876]
[1736319779456,0.0002041,95462.0,95458.0,0.06468]
[1736319780397,0.0002041,95462.0,95457.0,0.06468]
[1736319780522,0.0002041,95462.0,95458.0,0.21040777]
[1736319781214,0.0002041,95462.0,95460.0,0.209511]
[1736319781581,0.0002041,95462.0,95461.0,0.00089177]
[1736319783026,0.0002041,95462.0,95461.0,0.001]
[1736319784742,0.0002041,95462.0,95461.0,0.005]
[1736319784945,0.0002041,95462.0,95461.0,0.004]
[1736319785356,0.0002041,95462.0,95461.0,0.005]
[1736319785539,0.0002041,95462.0,95461.0,0.05085255]
[1736319785745,0.0002041,95462.0,95461.0,0.00089177]
[1736319785975,0.0002041,95462.0,95461.0,0.06657177]
[1736319786693,0.0002041,95462.0,95461.0,0.17084651]
[1736319786890,0.0002041,95462.0,95461.0,0.16984651]
[1736319787493,0.0002041,95462.0,95461.0,0.30401243]
[1736319787705,0.0002041,95462.0,95461.0,0.3854255]
[1736319787913,0.0002041,95462.0,95461.0,0.6354255]
[1736319788323,0.0002041,95462.0,95461.0,0.6364255]
[1736319788534,0.0002041,95462.0,95461.0,0.6374255]
[1736319788740,0.0002041,95462.0,95461.0,0.64765067]
[1736319788938,0.0002041,95462.0,95461.0,0.65465067]
[1736319789339,0.001724,95464.0,95463.0,0.1]
[1736319789551,0.0501704,95501.0,95482.0,0.209463]
[1736319789757,0.0501704,95501.0,95484.0,0.209459]
[1736319789758,0.00030417,95488.0,95484.0,0.209459]
[1736319789971,0.00030417,95488.0,95486.0,0.209454]
[1736319790173,0.00030417,95488.0,95471.0,0.0763]
[1736319790391,0.00030417,95488.0,95473.0,0.209482]
[1736319790597,0.00030417,95488.0,95475.0,0.209478]
[1736319790813,0.00030417,95488.0,95477.0,0.209474]
[1736319791020,0.00030417,95488.0,95473.0,0.209482]
[1736319791235,0.00030417,95488.0,95475.0,0.209478]
[1736319791448,0.00030417,95488.0,95472.0,0.16891474]
[1736319791449,0.00030417,95488.0,95476.0,0.06464]
[1736319791658,0.11823408,95483.0,95466.0,0.08629902]
[1736319791865,0.11823408,95483.0,95461.0,0.263009]
[1736319791866,0.09523408,95475.0,95461.0,0.007]
[1736319792084,0.023,95474.0,95460.0,0.274151]
[1736319792292,0.023,95474.0,95460.0,0.32260667]
[1736319792501,0.023,95474.0,95473.0,0.001]
[1736319792912,0.023,95469.0,95460.0,0.06464]
[1736319794352,0.023,95469.0,95456.0,0.06464]
[1736319794856,0.09523408,95475.0,95464.0,0.209502]
[1736319795063,0.09523408,95475.0,95458.0,0.209516]
[1736319795246,0.023,95474.0,95460.0,0.209511]
[1736319795474,0.023,95474.0,95460.0,0.24613276]
[1736319795681,0.023,95474.0,95461.0,0.00089173]
[1736319795893,0.09523408,95491.0,95461.0,0.10516647]
[1736319796308,0.09523408,95491.0,95478.0,0.209471]
[1736319796541,0.24523408,95491.0,95478.0,0.274111]
[1736319796777,0.173,95490.0,95483.0,0.209459]
[1736319797504,0.023,95490.0,95483.0,0.418919]
[1736319797715,0.023,95491.0,95483.0,0.418919]
[1736319797915,0.09523408,95499.0,95483.0,0.418919]
[1736319798118,0.1289704,95501.0,95485.0,0.209456]
[1736319798119,0.0501704,95501.0,95485.0,0.209456]
[1736319798347,0.0501704,95501.0,95487.0,0.209452]
[1736319798693,0.0501704,95501.0,95487.0,0.31372674]
[1736319798864,0.0501704,95501.0,95487.0,0.43810613]
[1736319799083,0.0501704,95501.0,95487.0,0.40549751]
[1736319799417,0.0501704,95501.0,95487.0,0.47013751]
[1736319799881,0.0501704,95501.0,95487.0,0.51173072]
[1736319800283,0.0501704,95501.0,95487.0,0.73390343]
[1736319800594,0.0501704,95501.0,95487.0,0.77148115]
[1736319800818,0.0501704,95501.0,95487.0,0.78218434]
[1736319800939,0.0501704,95501.0,95487.0,0.77718434]
[1736319801191,0.00020417,95488.0,95487.0,0.70354434]
[1736319801428,0.00020417,95488.0,95487.0,0.71754434]
[1736319801657,0.00020417,95488.0,95487.0,0.48413751]
[1736319801867,0.00020417,95488.0,95487.0,0.47513751]
[1736319802076,0.00020417,95488.0,95487.0,0.288052]
[1736319802518,0.00020417,95488.0,95487.0,0.32772674]
[1736319802732,0.00020417,95488.0,95487.0,0.39232674]
[1736319803066,0.00020417,95488.0,95487.0,0.37832674]
[1736319803478,0.00020417,95488.0,95487.0,0.38622909]
[1736319803690,0.00020417,95488.0,95487.0,0.4767443]
[1736319803890,0.00020417,95488.0,95487.0,0.4121443]
[1736319804099,0.00020417,95488.0,95487.0,0.4767443]
[1736319804304,0.00020417,95488.0,95487.0,0.21735435]
[1736319804513,0.00020417,95488.0,95487.0,0.28195435]
[1736319804688,0.00020417,95488.0,95487.0,0.21735435]
[1736319804861,0.00020417,95488.0,95487.0,0.28195435]
[1736319805071,0.00020417,95488.0,95487.0,0.28895435]
[1736319805265,0.00020417,95488.0,95487.0,0.35274209]
[1736319805471,0.00020417,95488.0,95487.0,0.28195435]
[1736319805674,0.00020417,95488.0,95487.0,0.28895435]
[1736319805874,0.00020417,95488.0,95487.0,0.28595435]
[1736319806053,0.00020417,95488.0,95487.0,0.27895435]
[1736319806267,0.00020417,95488.0,95487.0,0.28195435]
[1736319806491,0.00020417,95488.0,95487.0,0.35704209]
[1736319806692,0.00020417,95488.0,95487.0,0.35404209]
[1736319807105,0.00020417,95488.0,95487.0,0.35604209]
[1736319807916,0.00020417,95488.0,95487.0,0.28595435]
[1736319808510,0.00020417,95488.0,95487.0,0.01190235]
[1736319808925,0.02320417,95488.0,95487.0,0.007]
[1736319809152,0.00020417,95488.0,95487.0,0.01180808]
[1736319809688,0.00020417,95488.0,95487.0,0.00480808]
[1736319809858,0.00020417,95488.0,95487.0,0.002]
[1736319810063,0.00020417,95488.0,95487.0,0.01180808]
[1736319811062,0.00020417,95488.0,95487.0,0.04039439]
[1736319811290,0.00020417,95488.0,95487.0,0.01180808]
[1736319812500,0.00020417,95488.0,95470.0,0.19005705]
[1736319812501,0.09523408,95474.0,95453.0,0.209525]
[1736319812732,0.023,95471.0,95458.0,0.00089177]
[1736319812935,0.023,95471.0,95453.0,0.209525]
[1736319813049,0.209457,95485.0,95445.0,0.0646]
[1736319813050,0.09523408,95474.0,95458.0,0.06346233]
[1736319813260,0.09523408,95477.0,95459.0,0.209514]
[1736319813454,0.09523408,95481.0,95460.0,0.10516638]
[1736319813748,0.09523408,95481.0,95467.0,0.209496]
[1736319813896,0.023,95480.0,95468.0,0.0646]
[1736319814103,0.023,95480.0,95469.0,0.21038353]
[1736319814301,0.023,95480.0,95470.0,0.01143555]
[1736319814708,0.001,95474.0,95472.0,0.209485]
[1736319814915,0.001,95474.0,95470.0,0.01143555]
[1736319815089,0.023,95483.0,95470.0,0.00089145]
[1736319815278,0.023,95483.0,95471.0,0.21037846]
[1736319815479,0.001,95480.0,95471.0,0.21037846]
[1736319815684,0.023,95483.0,95471.0,0.00089146]
[1736319815885,0.023,95483.0,95469.0,0.00089146]
[1736319816088,0.002,95474.0,95469.0,0.00089146]
[1736319816294,0.001,95480.0,95470.0,0.0646]
[1736319816498,0.023,95483.0,95471.0,0.02749875]
[1736319816710,0.023,95483.0,95472.0,0.00089146]
[1736319816908,0.001,95483.0,95472.0,0.00089146]
[1736319817107,0.001,95483.0,95480.0,0.209467]
[1736319817551,0.001,95483.0,95482.0,0.209463]
[1736319817745,0.001,95483.0,95482.0,0.31373774]
[1736319817983,0.0804,95500.0,95485.0,0.209456]
[1736319818154,0.09523408,95497.0,95480.0,0.209467]
[1736319818379,0.01045797,95520.0,95482.0,0.209463]
[1736319818580,0.09523408,95509.0,95485.0,0.209456]
[1736319818785,0.09523408,95509.0,95487.0,0.209452]
[1736319818959,0.09523408,95509.0,95487.0,0.38699141]
[1736319819159,0.00120417,95488.0,95487.0,0.38699141]
[1736319819406,0.00020417,95488.0,95487.0,0.38699141]
[1736319819565,0.2095534,95519.0,95500.0,0.209424]
[1736319819566,0.09523408,95518.0,95500.0,0.209424]
[1736319819914,0.0001704,95519.0,95500.0,0.209424]
[1736319819915,0.0416,95517.0,95500.0,0.274024]
[1736319820122,0.0416,95517.0,95500.0,0.3014264]
[1736319820310,0.0416,95517.0,95500.0,0.40570114]
[1736319821175,0.0001704,95519.0,95500.0,0.40570114]
[1736319821808,0.05007805,95501.0,95500.0,0.66046706]
[1736319822817,0.05107805,95501.0,95500.0,0.67246706]
[1736319823171,0.05107805,95501.0,95500.0,0.57146466]
[1736319823172,0.05007805,95501.0,95500.0,0.57146466]
[1736319823375,0.05007805,95501.0,95500.0,0.56846466]
[1736319823539,0.05107805,95501.0,95500.0,0.64202466]
[1736319823717,0.05107805,95501.0,95500.0,0.6565673]
[1736319824430,0.05107805,95501.0,95500.0,1.16730908]
[1736319824628,0.05107805,95501.0,95500.0,1.27158382]
[1736319825262,0.05107805,95501.0,95500.0,1.30413384]
[1736319826154,0.05107805,95501.0,95500.0,1.23957384]
[1736319826390,0.05107805,95501.0,95500.0,1.27158382]
[1736319826600,0.05097805,95501.0,95500.0,1.27158382]
[1736319827211,0.05097805,95501.0,95500.0,1.20702382]
[1736319827363,0.05097805,95501.0,95500.0,0.76084204]
[1736319827979,0.05097805,95501.0,95500.0,0.69628204]
[1736319828195,0.05097805,95501.0,95500.0,0.76084204]
[1736319828810,0.05097805,95501.0,95500.0,0.69628204]
[1736319829032,0.05097805,95501.0,95500.0,0.76084204]
[1736319830296,0.05097805,95501.0,95500.0,1.27158382]
[1736319830715,0.05097805,95501.0,95500.0,1.30413114]
[1736319831604,0.05097805,95501.0,95500.0,1.38723114]
[1736319832051,0.05097805,95501.0,95500.0,1.80341163]
[1736319832684,0.00909405,95501.0,95500.0,1.80341163]
[1736319833307,0.00909405,95501.0,95500.0,1.38723114]
[1736319833512,0.0011704,95501.0,95500.0,1.38723114]
[1736319833711,0.0011704,95501.0,95500.0,1.29012382]
[1736319833916,0.0001704,95519.0,95514.0,0.46415892]
[1736319834121,0.0001704,95519.0,95514.0,0.63579005]
[1736319835554,0.0001704,95519.0,95514.0,1.14653183]
[1736319835769,0.0011704,95515.0,95514.0,1.15553183]
[1736319835959,0.0011704,95515.0,95514.0,1.14653183]
[1736319835960,0.0001704,95515.0,95514.0,1.14653183]
[1736319836318,0.0001704,95515.0,95514.0,1.15553183]
[1736319836530,0.0001704,95515.0,95514.0,1.15953183]
[1736319837155,0.0001704,95515.0,95514.0,1.15752511]
[1736319837552,0.0001704,95515.0,95514.0,1.22208511]
[1736319838994,0.0001704,95515.0,95514.0,1.16813537]
[1736319839191,0.0001704,95515.0,95514.0,0.72195359]
[1736319840423,0.0490528,95534.0,95530.0,0.418714]
[1736319840628,0.04956369,95534.0,95531.0,0.17797278]
[1736319840845,0.04956369,95534.0,95532.0,0.209353]
[1736319841051,0.04956369,95534.0,95533.0,0.10516425]
[1736319841712,0.04946369,95534.0,95533.0,0.10516425]
[1736319842704,0.04946369,95534.0,95533.0,0.10427474]
[1736319843106,0.04946369,95534.0,95533.0,0.003]
[1736319843311,0.12846369,95534.0,95533.0,0.06756]
[1736319843681,0.19666369,95534.0,95533.0,0.004]
[1736319843874,0.40601269,95534.0,95533.0,0.06856]
[1736319844094,0.40601269,95534.0,95533.0,0.004]
[1736319844318,0.50325349,95534.0,95533.0,0.004]
[1736319844539,0.0814,95512.0,95511.0,0.06456]
[1736319844719,0.0814,95512.0,95505.0,0.06456]
[1736319845469,0.1202408,95511.0,95505.0,0.06456]
[1736319845647,0.023,95510.0,95505.0,0.06456]
[1736319846059,0.0814,95512.0,95506.0,0.20941]
[1736319846495,0.0814,95512.0,95505.0,0.06456]
[1736319846702,0.0814,95512.0,95505.0,0.06545057]
[1736319846909,0.0814,95512.0,95506.0,0.02748686]
[1736319847558,0.0814,95512.0,95507.0,0.06456]
[1736319847968,0.0814,95512.0,95508.0,0.06456]
[1736319848816,0.0814,95512.0,95509.0,0.16883474]
[1736319849026,0.30401469,95534.0,95510.0,0.10427474]
[1736319849027,0.209373,95523.0,95510.0,0.10427474]
[1736319849230,0.0832,95524.0,95510.0,0.10427474]
[1736319849231,0.0972408,95516.0,95510.0,0.06456]
[1736319849432,0.0832,95524.0,95511.0,0.01160708]
[1736319849634,0.0972408,95523.0,95512.0,0.00089038]
[1736319850028,0.023,95522.0,95512.0,0.00089038]
[1736319850148,0.002,95523.0,95513.0,0.10516513]
[1736319850409,0.002,95523.0,95514.0,0.01804417]
[1736319850611,0.002,95523.0,95515.0,0.10427474]
[1736319851014,0.002,95523.0,95516.0,0.209389]
[1736319851438,0.002,95523.0,95518.0,0.209384]
[1736319851681,0.002,95523.0,95511.0,0.01071653]
[1736319851884,0.002,95523.0,95498.0,0.1]
[1736319851885,0.232375,95522.0,95512.0,0.06452]
[1736319852086,0.232375,95522.0,95513.0,0.06452]
[1736319852287,0.23238,95520.0,95513.0,0.06452]
[1736319852731,0.023,95520.0,95511.0,0.06452]
[1736319852940,0.0972408,95520.0,95511.0,0.06452]
[1736319853134,0.023,95519.0,95511.0,0.06452]
[1736319853518,0.232382,95519.0,95511.0,0.06452]
[1736319853720,0.023,95519.0,95511.0,0.070972]
[1736319854333,0.023,95519.0,95511.0,0.06452]
[1736319854531,0.024,95519.0,95511.0,0.06452]
[1736319855168,0.024,95519.0,95503.0,0.00089048]
[1736319855520,0.023,95517.0,95510.0,0.06452]
[1736319856132,0.023,95515.0,95510.0,0.06452]
[1736319856337,0.209393,95514.0,95510.0,0.06452]
[1736319856561,0.209402,95510.0,95496.0,0.00089058]
[1736319856731,0.1004,95509.0,95490.0,0.00089074]
[1736319856940,0.1004,95509.0,95470.0,0.51074178]
[1736319856941,0.0972408,95506.0,95491.0,0.06452]
[1736319857182,0.023,95505.0,95492.0,0.06452]
[1736319857593,0.1202408,95497.0,95493.0,0.06452]
[1736319857764,0.1202408,95497.0,95491.0,0.06452]
[1736319858594,0.023,95496.0,95491.0,0.06452]
[1736319859155,0.00130894,95502.0,95491.0,0.070972]
[1736319859352,0.0972408,95501.0,95491.0,0.070972]
[1736319859782,0.002,95497.0,95492.0,0.209441]
[1736319860195,0.023,95502.0,95492.0,0.209441]
[1736319860408,0.023,95502.0,95493.0,0.0489862]
[1736319860994,0.001,95497.0,95493.0,0.0489862]
[1736319861209,0.023,95502.0,95493.0,0.0489862]
[1736319861578,0.024,95502.0,95493.0,0.0489862]
[1736319861829,0.024,95502.0,95491.0,0.071972]
[1736319861830,0.024,95502.0,95491.0,0.06552]
[1736319861942,0.024,95502.0,95491.0,0.06452]
[1736319862348,0.002,95497.0,95491.0,0.06452]
[1736319862566,0.002,95497.0,95492.0,0.06452]
[1736319863218,0.024,95502.0,95492.0,0.06452]
[1736319863419,0.024,95502.0,95493.0,0.209439]
[1736319863669,0.002,95497.0,95493.0,0.209439]
[1736319865336,0.004,95497.0,95493.0,0.209439]
[1736319865536,0.005,95497.0,95493.0,0.209439]
[1736319865736,0.005,95497.0,95492.0,0.112951]
[1736319865933,0.001,95497.0,95492.0,0.112951]
[1736319866374,0.003,95497.0,95492.0,0.112951]
[1736319866576,0.001,95497.0,95492.0,0.06452]
[1736319866790,0.023,95502.0,95493.0,0.209439]
[1736319866995,0.002,95497.0,95493.0,0.209439]
[1736319867261,0.003,95497.0,95493.0,0.209439]
[1736319867464,0.003,95497.0,95494.0,0.0483408]
[1736319867615,0.002,95497.0,95494.0,0.0483408]
[1736319867824,0.023,95502.0,95494.0,0.0483408]
[1736319868031,0.023,95502.0,95495.0,0.209435]
[1736319868032,0.001,95502.0,95495.0,0.209435]
[1736319868210,0.001,95502.0,95496.0,0.00089084]
[1736319868412,0.0774,95509.0,95497.0,0.24263945]
[1736319868780,0.0774,95509.0,95498.0,0.209427]
[1736319868998,0.0774,95509.0,95498.0,0.10427474]
[1736319869211,0.0774,95509.0,95499.0,0.209426]
[1736319869212,0.002,95502.0,95499.0,0.209426]
[1736319869449,0.002,95502.0,95499.0,0.418852]
[1736319869666,0.2472408,95519.0,95509.0,0.209404]
[1736319870073,0.02315317,95518.0,95509.0,0.209404]
[1736319870281,0.00015317,95518.0,95514.0,0.209391]
[1736319870490,0.00015317,95518.0,95516.0,0.209389]
[1736319870697,0.00015317,95518.0,95517.0,0.00089032]
[1736319871146,0.00015317,95518.0,95514.0,0.209391]
[1736319871665,0.00115317,95518.0,95514.0,0.209391]
[1736319872337,0.00115317,95518.0,95511.0,0.209398]
[1736319872540,0.00115317,95518.0,95515.0,0.06452]
[1736319872865,0.00315317,95518.0,95515.0,0.06452]
[1736319873070,0.00115317,95518.0,95516.0,0.209389]
[1736319873273,0.00015317,95518.0,95516.0,0.209389]
[1736319873474,0.00215317,95518.0,95516.0,0.209389]
[1736319873706,0.00115317,95518.0,95516.0,0.2577197]
[1736319874124,0.002,95518.0,95517.0,0.10427474]
[1736319874583,0.003,95518.0,95517.0,0.10516483]
[1736319874968,0.00179717,95518.0,95517.0,0.10516483]
[1736319875164,0.00179717,95518.0,95517.0,0.16884508]
[1736319875564,0.0489528,95534.0,95517.0,0.16884508]
[1736319875775,0.04946328,95534.0,95518.0,0.00089005]
[1736319876006,0.04946328,95534.0,95515.0,0.06452]
[1736319876007,0.04946328,95534.0,95526.0,0.209366]
[1736319876163,0.04946328,95534.0,95528.0,0.209362]
[1736319877589,0.05046328,95534.0,95529.0,0.20936]
[1736319877991,0.04946328,95534.0,95529.0,0.20936]
[1736319878305,0.04946328,95534.0,95525.0,0.209368]
[1736319878306,0.04946328,95534.0,95530.0,0.06452]
[1736319878541,0.05046328,95534.0,95523.0,0.00088999]
[1736319878732,0.05237095,95534.0,95524.0,0.06452]
[1736319878909,0.05237095,95534.0,95525.0,0.06452]
[1736319879106,0.05237095,95534.0,95519.0,0.209381]
[1736319879107,0.05037095,95534.0,95519.0,0.209381]
[1736319879333,0.023,95530.0,95514.0,0.209392]
[1736319879494,0.023,95530.0,95520.0,0.06452]
[1736319880116,0.023,95530.0,95519.0,0.209381]
[1736319880117,0.05237095,95534.0,95521.0,0.06452]
[1736319880358,0.05037095,95534.0,95522.0,0.006452]
[1736319880570,0.04937095,95534.0,95522.0,0.006452]
[1736319880769,0.002,95530.0,95522.0,0.006452]
[1736319881183,0.003,95530.0,95522.0,0.006452]
[1736319881435,0.003,95530.0,95521.0,0.06452]
[1736319881436,0.003,95530.0,95523.0,0.0070972]
[1736319881606,0.003,95530.0,95524.0,0.209371]
[1736319881812,0.002,95530.0,95524.0,0.209371]
[1736319882479,0.002,95530.0,95522.0,0.209375]
[1736319882713,0.04937095,95534.0,95522.0,0.22675835]
[1736319882972,0.05137095,95534.0,95522.0,0.209375]
[1736319883195,0.04937095,95534.0,95522.0,0.209375]
[1736319883396,0.04937095,95534.0,95522.0,0.208375]
[1736319883597,0.002,95530.0,95522.0,0.208375]
[1736319883805,0.001,95530.0,95523.0,0.0272895]
[1736319884449,0.00051048,95534.0,95524.0,0.06448]
[1736319884653,0.00151048,95534.0,95524.0,0.06448]
[1736319885245,0.00051048,95534.0,95524.0,0.06537004]
[1736319885701,0.00051048,95534.0,95529.0,0.209358]
[1736319885908,0.00051048,95534.0,95530.0,0.04062923]
[1736319886082,0.00051048,95534.0,95524.0,0.16875474]
[1736319886083,0.00051048,95534.0,95526.0,0.209367]
[1736319886259,0.00051048,95534.0,95528.0,0.209362]
[1736319886472,0.00251048,95534.0,95529.0,0.00088991]
[1736319886777,0.001,95530.0,95525.0,0.209369]
[1736319886940,0.001,95530.0,95527.0,0.209364]
[1736319887144,0.00251048,95534.0,95527.0,0.209364]
[1736319887583,0.00151048,95534.0,95527.0,0.209364]
[1736319887781,0.00351048,95534.0,95527.0,0.209364]
[1736319887981,0.00251048,95534.0,95527.0,0.209364]
[1736319888387,0.00251048,95534.0,95527.0,0.27006533]
[1736319888655,0.00341048,95534.0,95532.0,0.209352]
[1736319889266,0.00141048,95534.0,95532.0,0.209352]
[1736319889739,0.00241048,95534.0,95532.0,0.209352]
[1736319889906,0.00041048,95534.0,95533.0,0.11242173]
[1736319890122,0.00141048,95534.0,95533.0,0.11242173]
[1736319890479,0.00241048,95534.0,95533.0,0.11242173]
[1736319890675,0.00341048,95534.0,95533.0,0.11242173]
[1736319890899,0.00141048,95534.0,95533.0,0.11242173]
[1736319891260,0.00041048,95534.0,95533.0,0.06448]
[1736319891687,0.00141048,95534.0,95533.0,0.06448]
[1736319892493,0.00341048,95534.0,95533.0,0.06448]
[1736319892722,0.00141048,95534.0,95533.0,0.06448]
[1736319892872,0.00041048,95534.0,95533.0,0.06448]
[1736319893056,0.00241048,95534.0,95533.0,0.06448]
[1736319893234,0.00341048,95534.0,95533.0,0.06448]
[1736319893815,0.00541048,95534.0,95533.0,0.06448]
[1736319894239,0.00441048,95534.0,95533.0,0.06536977]
[1736319894435,0.00541048,95534.0,95533.0,0.06536977]
[1736319894893,0.00541048,95534.0,95533.0,0.06448]
[1736319895519,0.00141048,95534.0,95533.0,0.06448]
[1736319896174,0.00041048,95534.0,95533.0,0.06448]
[1736319896378,0.00141048,95534.0,95533.0,0.11368934]
[1736319896782,0.00041048,95534.0,95533.0,0.11368934]
[1736319896989,0.00241048,95534.0,95533.0,0.06536974]
[1736319897453,0.00141048,95534.0,95533.0,0.06536974]
[1736319897771,0.00041048,95534.0,95533.0,0.16964448]
[1736319898538,0.00041048,95534.0,95533.0,0.10516448]
[1736319898740,0.00041048,95534.0,95533.0,0.17987594]
[1736319898946,0.00041048,95534.0,95533.0,0.25277025]